[Event "Croatian 1A League 2022"]
[Site "Porec"]
[Date "2022.09.24"]
[Round "1.14"]
[White "Postny, Evgeny"]
[Black "Fercec, Nenad"]
[Result "0-1"]
[ECO "E16"]
[WhiteElo "2573"]
[BlackElo "2403"]
[Annotator "TA"]
[PlyCount "82"]
[EventDate "2022.09.24"]
[EventType "team-tourn"]
[EventCountry "CRO"]
[SourceTitle "playchess.com"]
[Source "ChessBase"]
[SourceQuality "1"]
[TimeControl "40/5400+30:1800+30"]

{[%evp 9,82,16,49,48,47,37,41,24,42,42,47,42,50,55,54,58,48,50,51,64,86,82,64,83,110,111,132,114,115,118,97,84,83,117,124,85,89,54,105,40,42,-7,65,48,65,56,264,94,130,19,508,295,295,318,312,-189,-147,-297,-279,-389,-375,-487,350,0,347,0,0,-387,-378,-29990,-767,-767,-767,-1296,-1215]} 1. d4 {[%emt 0:01:00]} Nf6 {[%emt 0:01:00]} 2. c4 {[%emt 0:00:00]} e6 {[%emt 0:00:00]} 3. Nf3 {[%emt 0:00:00]} b6 {[%emt 0:00:00]} 4. g3 {[%emt 0:00:00]} Bb7 {[%emt 0:00:30]} 5. Bg2 {[%emt 0:00:00]} g6 {[%emt 0:00:00]} 6. Nc3 {[%emt 0:00:30] E16: Queen's Indian: 4 g3 Bb7 5 Bg2 Bb4+.} Bg7 {[%emt 0:00:00]} 7. d5 {[%emt 0:00:30]} exd5 {[%emt 0:00:30]} 8. cxd5 {[%emt 0:00:30] White is slightly better.} O-O {[%emt 0:00:30]} 9. O-O {[%emt 0:01:30]} Re8 {[%emt 0:01:30] Inhibits e4.} 10. Nd4 {[%emt 0:01:30]} c5 {[%emt 0:10:30]} 11. Ndb5 {[%emt 0:03:30]} d6 $1 {[%emt 0:00:30]} 12. Bf4 {[%emt 0:03:30]} Bf8 {[%emt 0:00:30]} 13. a4 {[%emt 0:00:30]} Nh5 {[%emt 0:05:30]} 14. Bd2 {[%emt 0:00:30]} a6 {[%emt 0:01:30]} 15. Na3 {[%emt 0:00:00]} Nd7 {[%emt 0:00:30]} 16. e4 {[%emt 0:07:00] [#]} Bc8 $146 {[%emt 0:13:30]} ({Predecessor:} 16... Ne5 17. Qe2 Nf6 18. f4 Ned7 19. Qf3 b5 20. axb5 axb5 21. Naxb5 Rxa1 22. Rxa1 Qb6 {1-0 (47) Ponomariov,R (2686)-Hou,Y (2658) Shenzhen 2018}) 17. f4 {[%emt 0:11:30]} Rb8 {[%emt 0:05:30]} 18. g4 {[%emt 0:19:30]} Nhf6 {[%emt 0:02:30]} 19. h3 {[%emt 0:01:30]} b5 {[%emt 0:35:59]} 20. axb5 {[%emt 0:00:30]} axb5 {[%emt 0:02:34]} 21. Naxb5 {[%emt 0:00:30]} Qb6 {[%emt 0:00:38]} 22. g5 {[%emt 0:24:30]} Nh5 {[%emt 0:01:40]} 23. Bf3 {[%emt 0:00:30]} c4+ {[%emt 0:02:27]} (23... Bg7 $1 $14) 24. Kh2 {[%emt 0:03:30]} ({White should play} 24. Kg2 $16) 24... Nc5 $14 {[%emt 0:00:05]} 25. Na3 {[%emt 0:09:50]} (25. f5 $14 {deserves consideration.} Bd7 26. Bxh5 Bxb5 27. Bg4 (27. Nxb5 Qxb5 28. Bc3 Nxe4 $17)) 25... Ba6 {[%emt 0:05:09]} (25... Nb3 $11) 26. Nc2 $36 {[%emt 0:01:24][%mdl 2048] And now f5 would win. White has the initiative.} (26. Bxh5 gxh5 27. Nc2 (27. Qxh5 Nxe4 28. Nxe4 Rxe4 $17) 27... Nxe4 $11) 26... Bg7 {[%emt 0:00:58]} (26... Qxb2 $2 27. Rb1 Qb3 28. f5 $18) 27. Ra2 {[%emt 0:03:37]} Nd3 $2 {[%emt 0:01:54]} (27... Qb3 $14) 28. Be3 $2 {[%emt 0:00:43]} (28. Bxh5 $18 {and the rest is easy. Bf3 is the strong threat.} gxh5 29. Be3 (29. Qxh5 Qb3 $11)) 28... Nxb2 {[%emt 0:02:49]} 29. Qd2 {[%emt 0:04:37]} (29. Bxb6 $6 Nxd1 30. Rxa6 (30. Rxd1 Rxb6 31. Bxh5 Bxc3 $15) 30... Nxc3 $11) ({Better is} 29. Qc1 $1 $16 Qb7 30. Bd4) 29... Qb3 {[%emt 0:01:56][%mdl 8192]} (29... Bxc3 $11 30. Qxc3 Qb3 31. Qxb3 cxb3 32. Rxa6 bxc2) 30. Nd4 {[%emt 0:00:15]} (30. Rxa6 Bxc3 31. Qg2 Nd3 32. Bxh5 gxh5 $11) 30... Qxa2 {[%emt 0:03:30]} 31. Nxa2 {[%emt 0:00:06]} c3 {[%emt 0:00:05]} 32. Qg2 {[%emt 0:01:43][%mdl 8192]} (32. Qxc3 Bxf1 33. Nb4 Nc4 $11) (32. Qc1 $18 {and all is fine.}) 32... Nc4 $1 $19 {[%emt 0:00:25]} 33. Bf2 {[%emt 0:01:15]} (33. Nxc3 $2 Nxe3 34. Qf2 Nxf1+ $19) (33. Bg1 $17 {was called for.} Rb2 34. Nxc3 Nxf4 35. Qxb2 Nxb2 36. Ra1) 33... Nxf4 {[%emt 0:00:11]} 34. Qg4 {[%emt 0:00:24]} Rb2 {[%emt 0:00:18]} 35. Qd7 {[%emt 0:00:40]} Bxd4 $4 {[%emt 0:01:19][%mdl 8192]} 36. Qxe8+ $18 {[%emt 0:00:30]} Kg7 {[%emt 0:00:01] [#] Threatens to win with ...Ne3.} 37. Nxc3 $2 {[%emt 0:00:32]} Bxc3 $11 {[%emt 0:00:15]} 38. Kg3 $2 {[%emt 0:00:48][%mdl 8192]} (38. Kh1 $11 Ne5 39. Be1 Bxe1 40. Qd8 Bxf1 41. Qf6+ Kg8 42. Qd8+ Kg7 43. Qf6+ Kg8 44. Qd8+ Kg7) 38... Be5 $1 $19 {[%emt 0:00:29] Chess con chili.} 39. Qa4 $2 {[%emt 0:00:34] [#]} ({Wrong is} 39. Kh4 $2 Nd2 40. Bg3 Bxf1 $19) (39. Bd4 $19 Bxd4 40. Bd1 (40. Kxf4 $2 Be5+ 41. Qxe5+ Nxe5 $19)) 39... Bb5 {[%emt 0:00:23]} (39... Ne3 $142 $1 {[%mdl 512]} 40. Bd1 Nxf1+ 41. Kf3 Nxh3 42. Bc2 Nh2+ 43. Ke3 Bb5 44. Qxb5 Rxb5 45. Be1 Rb2 46. Ke2 Rxc2+ 47. Kd3 Rb2 48. Kc4 Nxg5 49. Kd3 Nhf3 50. Ba5 Rb5 51. Bc3 h5 52. Bxe5+ Nxe5+ 53. Kd2 h4 54. Ke3 {[#]} Nxe4 $1 {[%mdl 512]} 55. Kf4 f5 56. Ke3 Rb2 57. Kd4 f4 $1 58. Kxe4 Rb4#) 40. Qa7 {[%emt 0:00:00]} Nd2 {[%emt 0:00:00][%mdl 64] Discovered Attack. Pair of Knights!} 41. Rd1 {[%emt 0:05:32]} Nxf3 {[%emt 0:04:25] Weighted Error Value: White=1.10/Black=0.58} 0-1

[Event "Croatian 1A League 2022"]
[Site "Porec"]
[Date "2022.09.24"]
[Round "1.15"]
[White "Krsnik Cohar, Ivan Vihor"]
[Black "Bosiocic, Marin"]
[Result "1-0"]
[ECO "A48"]
[WhiteElo "2296"]
[BlackElo "2548"]
[Annotator "TA"]
[PlyCount "133"]
[EventDate "2022.09.24"]
[EventType "team-tourn"]
[EventCountry "CRO"]
[SourceTitle "playchess.com"]
[Source "ChessBase"]
[SourceQuality "1"]
[TimeControl "40/5400+30:1800+30"]

{[%evp 9,133,0,-4,-14,0,-32,-29,-28,-34,-55,-39,-51,-48,-48,-50,-47,-40,-46,-42,-54,0,0,0,0,7,8,34,5,5,4,3,0,0,0,20,0,0,0,-8,0,0,-88,-98,-91,-85,-90,-81,-76,-82,-83,-72,-75,7,4,23,16,16,19,65,17,154,154,154,154,154,154,154,152,168,141,161,161,302,298,285,111,516,430,430,429,414,404,456,456,440,430,429,429,560,526,760,508,780,775,4331,4163,4149,729,738,733,1655,1720,4149,4014,2039,612,4149,4149,29975,4149,4149,4149,29997,4149,4149,4149,4149,4149,5181,5066,4149,4141,29985,29984,29986,29987]} 1. d4 {[%emt 0:01:00]} Nf6 {[%emt 0:01:00]} 2. Bf4 {[%emt 0:01:30]} g6 {[%emt 0:00:30]} 3. Nf3 {[%emt 0:00:30]} d6 {[%emt 0:00:30]} 4. Nc3 {[%emt 0:01:30]} Nh5 {[%emt 0:05:30]} 5. Qd2 {[%emt 0:03:30]} Nxf4 {[%emt 0:02:30]} 6. Qxf4 {[%emt 0:00:00] A48: 1 d4 Nf6 2 Nf3 g6: Torre, London and Colle Systems.} Bg7 {[%emt 0:00:30]} 7. e3 {[%emt 0:02:00] [#]} Nd7 $146 {[%emt 0:02:30]} ({Predecessor:} 7... c6 8. Bc4 d5 9. Bd3 Qd6 10. Qxd6 exd6 11. h3 O-O 12. O-O b5 13. a3 f5 {½-½ (24) Bauner,J (1989)-Malmdin,N (2172) Bucharest 2019}) 8. Bc4 {[%emt 0:01:30][%csl Gc4][%cal Rf4f7] Black has an edge.} O-O {[%emt 0:01:30]} 9. h4 {[%emt 0:01:30]} e5 {[%emt 0:01:30]} 10. Qg5 {[%emt 0:16:30]} exd4 {[%emt 0:03:30]} (10... c6 {is more complex.} 11. dxe5 Nxe5 12. Nxe5 Bxe5 13. O-O-O Kg7) 11. Qxd8 {[%emt 0:03:30]} Rxd8 {[%emt 0:00:30]} 12. Nxd4 {[%emt 0:00:30]} Nb6 {[%emt 0:04:30]} 13. Be2 {[%emt 0:00:30]} a6 {[%emt 0:05:30]} 14. Bf3 {[%emt 0:04:30]} c5 {[%emt 0:09:30]} ({Black should play} 14... h5 $15) 15. Nde2 $11 {[%emt 0:00:30]} d5 {[%emt 0:00:30][%cal Bd6d5,Bd5d4][%mdl 32]} 16. O-O-O {[%emt 0:03:30][%cal Rf3d5]} d4 {[%emt 0:03:30]} 17. Ne4 {[%emt 0:02:30][%cal Bc3e4,Be4c5,Bc5b3][%mdl 32]} Bf5 {[%emt 0:01:30]} 18. Nxc5 {[%emt 0:05:30][%cal Re2d4]} dxe3 {[%emt 0:02:30]} 19. g4 {[%emt 0:00:30]} Nc4 {[%emt 0:09:30][%cal Oe3f2]} 20. gxf5 {[%emt 0:04:30]} Bxb2+ {[%emt 0:08:30][%cal Bg7b2,Bb2a3,Ba3f8][%mdl 32]} 21. Kb1 {[%emt 0:01:30]} Ba3 {[%emt 0:01:30] Hoping for ...Rxd1+.} 22. Nb3 {[%emt 0:12:30] Threatens to win with fxg6.} (22. Nxb7 Rxd1+ 23. Rxd1 exf2 $17) (22. Bxb7 $2 Rdb8 23. Nb3 (23. Ka1 $2 exf2 24. fxg6 hxg6 $19) 23... Rxb7 24. fxe3 Nxe3 $19) 22... exf2 {[%emt 0:01:30]} 23. Rdf1 {[%emt 0:00:30]} (23. Bxb7 $2 Rxd1+ 24. Rxd1 Re8 $19) 23... a5 {[%emt 0:04:30]} 24. Rxf2 {[%emt 0:05:30]} a4 {[%emt 0:00:30]} 25. Nec1 {[%emt 0:08:05]} (25. Bxb7 $2 axb3 26. cxb3 (26. Bxa8 $2 Nd2+ 27. Ka1 b2#) 26... Ra7 27. fxg6 hxg6 $19) (25. Nbd4 $11 {keeps the balance.}) 25... axb3 $17 {[%emt 0:01:30]} (25... Bf8 {looks sharper.} 26. Be2 Na3+ 27. Kb2 axb3 28. Nxb3 Rdc8) 26. Nxb3 {[%emt 0:00:02]} Bf8 {[%emt 0:06:30]} 27. fxg6 {[%emt 0:05:54]} hxg6 {[%emt 0:00:00] White must now prevent ...Na3+.} 28. h5 {[%emt 0:00:37]} Na3+ {[%emt 0:02:00]} 29. Kb2 {[%emt 0:01:12]} Bg7+ {[%emt 0:00:30]} 30. Kc1 {[%emt 0:00:02]} Nb5 {[%emt 0:08:58]} (30... Bh6+ $17 31. Kb2 Nc4+ 32. Kb1 g5) 31. hxg6 $11 {[%emt 0:06:38]} Rxa2 {[%emt 0:01:49]} 32. gxf7+ {[%emt 0:00:05]} Kf8 {[%emt 0:00:22] ( -> ...Bb2+)} 33. Rd2 {[%emt 0:00:11]} (33. Bxb7 $2 Bb2+ 34. Kb1 Nc3#) 33... Rc8 {[%emt 0:05:42]} (33... Rxd2 $11 34. Kxd2 b6) 34. Bxb7 {[%emt 0:03:32]} (34. Rh7 $1 $14 Na3 35. Be4 (35. Bxb7 Rb2 $11)) 34... Rb8 {[%emt 0:03:09]} (34... Rc7 $11 35. Rd8+ Kxf7) 35. Rd7 $16 {[%emt 0:03:10]} Na3 {[%emt 0:00:16]} 36. Rh2 {[%emt 0:00:43] Threatening mate with Nc5.} Nc4 {[%emt 0:00:47]} 37. Re2 $1 {[%emt 0:01:27][%cal Oe2e8] Strongly threatening Re8+!} Bh6+ {[%emt 0:03:13]} 38. Kb1 {[%emt 0:00:59]} Rb2+ {[%emt 0:00:33]} 39. Ka1 {[%emt 0:00:00] And now Bc6 would win.} Nb6 {[%emt 0:00:33]} 40. Rc7 {[%emt 0:00:00]} Bf4 {[%emt 0:00:00] [#]} (40... Bg7 $142 41. Re8+ Rxe8 42. fxe8=Q+ (42. fxe8=N Be5 $14) 42... Kxe8 43. Rxg7 Rxc2) 41. Rc6 $1 $18 {[%emt 0:06:53]} (41. Kxb2 Bxc7 42. Bc6 Kxf7 $14) 41... Na4 {[%emt 0:03:38]} 42. Rc4 $2 {[%emt 0:00:30]} (42. Re4 $18 {is the precise move to win.} Rd8 43. Nd4 (43. Rxa4 Be5 $11) 43... Rxd4 44. Rxd4) 42... Bg5 {[%emt 0:02:30][%mdl 8192] A mistake that costs the game.} (42... Rxb7 $16 {is more resistant.} 43. Rxf4 Rb1+ 44. Kxb1 Nc3+ 45. Kb2 Nxe2) 43. Re8+ {[%emt 0:01:30]} (43. Rxa4 Bf6 $14) 43... Rxe8 {[%emt 0:00:00]} 44. fxe8=Q+ {[%emt 0:00:00]} ({Don't take} 44. fxe8=N Kxe8 45. Bc6+ (45. Rxa4 Bf6 $14) 45... Ke7 46. Bxa4 Bf6 $18) (44. fxe8=B Bf6 $18) 44... Kxe8 {[%emt 0:00:00]} 45. Bc6+ {[%emt 0:00:00]} ({Weaker is} 45. Rxa4 Bf6 $14) 45... Ke7 {[%emt 0:00:30][%cal Og5f6]} 46. Bxa4 {[%emt 0:00:30]} Bf6 {[%emt 0:00:30] [#]} 47. Nd4 {[%emt 0:00:00]} Rb6 {[%emt 0:01:30]} 48. Ka2 {[%emt 0:00:00]} Kd6 {[%emt 0:00:00]} 49. Nb5+ {[%emt 0:01:30]} Kd5 {[%emt 0:00:00]} 50. Kb3 {[%emt 0:00:00]} Be5 {[%emt 0:00:30]} (50... Ke6 $142 51. Rc5 Bg7) 51. Rc8 {[%emt 0:00:00]} Rb8 {[%emt 0:00:30]} 52. c4+ {[%emt 0:00:30]} Ke4 {[%emt 0:00:30]} 53. Rc6 {[%emt 0:00:00]} Rh8 {[%emt 0:00:30]} 54. Kb4 {[%emt 0:00:00]} Kd3 {[%emt 0:00:30]} 55. Re6 {[%emt 0:00:30]} Bf4 {[%emt 0:00:30]} 56. c5 {[%emt 0:00:00]} Rh4 {[%emt 0:01:30]} 57. Kb3 {[%emt 0:00:00]} Rh1 {[%emt 0:01:30]} 58. Nc3 {[%emt 0:01:30] Against Rb1+. Bb5+ is the strong threat.} Rh3 {[%emt 0:00:30]} 59. c6 {[%emt 0:01:30]} (59. Re4 $142 Kd2 60. Rxf4 Rxc3+ 61. Kb4 Rg3 62. Bd7 Re3 63. c6 Rg3 64. Rc4) 59... Bh2 {[%emt 0:03:30]} 60. Re4 {[%emt 0:03:30] Intending Bb5+ and mate.} Rh5 {[%emt 0:00:30]} 61. Rg4 {[%emt 0:01:30]} (61. Kb2 $142 Kd2 62. Nb1+ Kd3 63. Bc2#) 61... Rc5 {[%emt 0:01:30]} 62. Bb5+ {[%emt 0:00:30]} Ke3 {[%emt 0:00:30]} 63. Re4+ {[%emt 0:00:30]} Kf3 {[%emt 0:00:30]} 64. Be2+ {[%emt 0:00:00]} Kf2 {[%emt 0:00:00]} 65. Rh4 {[%emt 0:00:00] White wants to mate with Ne4+.} Kg2 {[%emt 0:02:00]} 66. Rg4+ {[%emt 0:00:30]} Kh3 {[%emt 0:00:00]} 67. Ne4 {[%emt 0:00:00] Weighted Error Value: White=0.19 (very precise) /Black=0.32} 1-0

[Event "Croatian 1A League 2022"]
[Site "Porec"]
[Date "2022.09.24"]
[Round "1.16"]
[White "Fucak, Emilio Milko"]
[Black "Zufic, Miroslav"]
[Result "1-0"]
[ECO "A20"]
[WhiteElo "2187"]
[BlackElo "2370"]
[Annotator "TA"]
[PlyCount "63"]
[EventDate "2022.09.24"]
[EventType "team-tourn"]
[EventCountry "CRO"]
[SourceTitle "playchess.com"]
[Source "ChessBase"]
[SourceQuality "1"]
[TimeControl "40/5400+30:1800+30"]

{[%evp 9,63,7,17,8,18,14,30,14,23,12,21,9,15,19,20,21,18,25,25,16,28,17,20,14,35,11,21,20,10,0,15,0,2,-99,-123,-153,-155,-159,-150,-147,-151,-161,-156,-152,-74,-62,0,0,0,0,0,0,240,224,29994,29995]} 1. c4 {[%emt 0:01:00]} e5 {[%emt 0:01:00]} 2. g3 {[%emt 0:00:00]} Nc6 {[%emt 0:02:30]} 3. Bg2 {[%emt 0:00:00]} Bc5 {[%emt 0:00:30]} 4. d3 {[%emt 0:02:30]} d6 {[%emt 0:02:30]} 5. Nc3 {[%emt 0:01:30]} a6 {[%emt 0:02:30]} 6. e3 {[%emt 0:02:30] A20: English Opening: 1...e5.} Nf6 {[%emt 0:02:30]} 7. Nge2 {[%emt 0:01:30]} Ba7 {[%emt 0:02:30]} 8. h3 {[%emt 0:03:30] [#] White has an edge.} Bd7 $146 {[%emt 0:10:30]} ({Predecessor:} 8... O-O 9. O-O h6 10. b3 Ne7 11. Bb2 Ng6 12. Qd2 Re8 13. Kh2 c6 14. e4 b5 {1-0 (70) Martinez Alcantara,J (2583)-Fedorchuk,S (2620) Le Blanc Mesnil 2019}) 9. b3 {[%emt 0:00:30]} Rb8 {[%emt 0:04:30]} 10. Bb2 {[%emt 0:04:30]} b5 {[%emt 0:09:30]} 11. Nd5 {[%emt 0:04:30]} Nxd5 {[%emt 0:05:30]} 12. cxd5 {[%emt 0:01:30]} Ne7 {[%emt 0:00:00]} 13. d4 {[%emt 0:03:30]} f6 {[%emt 0:05:00]} 14. Rc1 {[%emt 0:02:30]} b4 {[%emt 0:04:30]} 15. O-O {[%emt 0:02:30]} O-O {[%emt 0:00:30]} 16. Qd2 {[%emt 0:06:30]} Bb5 {[%emt 0:08:30]} 17. Rc2 {[%emt 0:04:30]} a5 {[%emt 0:06:30]} 18. Rfc1 {[%emt 0:04:30]} Bb6 {[%emt 0:03:30]} 19. Kh2 {[%emt 0:00:30]} Nf5 {[%emt 0:05:30]} 20. Be4 {[%emt 0:11:30]} Qd7 {[%emt 0:03:16]} 21. f4 {[%emt 0:02:30]} (21. Bd3 $11) 21... Rbe8 $17 {[%emt 0:06:40]} 22. Bxf5 {[%emt 0:04:30]} Qxf5 {[%emt 0:00:02]} 23. g4 {[%emt 0:00:30][%cal Bg3g4,Bg4g5][%mdl 32]} Qe4 {[%emt 0:03:44] [#] ...Bxe2 is the strong threat.} 24. Ng3 {[%emt 0:07:30]} Qxd5 {[%emt 0:00:55]} 25. e4 {[%emt 0:00:30]} Qb7 {[%emt 0:02:22]} 26. d5 {[%emt 0:00:30]} exf4 {[%emt 0:05:04]} (26... a4 $142 27. Rd1 Bc5) 27. Qxf4 {[%emt 0:00:30]} Rf7 {[%emt 0:00:13]} (27... h6 $1 $15) 28. g5 $1 $11 {[%emt 0:04:30]} Bd3 {[%emt 0:01:30] Hoping for ...f5.} 29. Rg2 {[%emt 0:03:30][%cal Rg5f6]} f5 {[%emt 0:01:18]} 30. Nxf5 {[%emt 0:03:27] Intending g6 and mate.} Rxf5 $2 {[%emt 0:01:15]} 31. Qxf5 $18 {[%emt 0:00:28] White wants to mate with Qd7.} ({And not} 31. exf5 Be3 32. Qf3 Bxc1 $11) 31... Bxe4 $2 {[%emt 0:00:09]} (31... Qc8 $18 32. Qxc8 Rxc8) 32. Qd7 {[%emt 0:00:14][%csl LRe8,LRg7] Weighted Error Value: White=0.12 (very precise) /Black=0.35} 1-0

[Event "Croatian 1A League 2022"]
[Site "Porec"]
[Date "2022.09.24"]
[Round "1.18"]
[White "Mihalic, Goran"]
[Black "Rubil, Marko"]
[Result "1-0"]
[ECO "D02"]
[WhiteElo "2023"]
[BlackElo "2270"]
[Annotator "TA"]
[PlyCount "75"]
[EventDate "2022.09.24"]
[EventType "team-tourn"]
[EventCountry "CRO"]
[SourceTitle "playchess.com"]
[Source "ChessBase"]
[SourceQuality "1"]
[TimeControl "40/5400+30:1800+30"]

{[%evp 9,75,39,35,31,43,58,57,18,19,12,18,17,23,10,15,19,30,29,55,15,18,17,32,10,16,13,18,0,0,0,0,0,0,0,0,-14,0,-8,-8,-50,-47,-135,-128,-369,-377,-378,-132,-140,-95,-91,-26,-18,0,0,0,0,0,0,26,28,52,43,29990,29991,29991,29992,29992,29993]} 1. Nf3 {[%emt 0:01:00]} d5 {[%emt 0:03:00]} 2. g3 {[%emt 0:00:30]} g6 {[%emt 1:20:30]} 3. Bg2 {[%emt 1:11:26]} Bg7 {[%emt 0:00:30]} 4. d4 {[%emt 0:00:38]} Nh6 {[%emt 0:00:30][%cal Bg8h6,Bh6f5,Bf5d6][%mdl 32]} 5. O-O {[%emt 0:00:35]} Nf5 {[%emt 0:00:30]} 6. c3 {[%emt 0:00:34] D02: 1 d4 d5 2 Nf3 sidelines, including 2...Nf6 3 g3 and 2...Nf6 3 Bf4.} c6 {[%emt 0:00:30] Recently 6...Nd6 got a lot of attention.} 7. Nbd2 {[%emt 0:00:36]} Nd6 {[%emt 0:00:42]} 8. Ne5 {[%emt 0:00:14] White is slightly better.} Nd7 {[%emt 0:00:35]} 9. Nxd7 {[%emt 0:00:30]} Bxd7 {[%emt 0:00:36]} 10. e4 {[%emt 0:00:30]} dxe4 {[%emt 0:00:35]} 11. Nxe4 {[%emt 0:00:30]} Nxe4 {[%emt 0:00:00]} 12. Bxe4 {[%emt 0:00:38] [#]} Bh3 $146 {[%emt 0:00:30]} ({Predecessor:} 12... Be6 13. Bg2 Bd5 14. f3 O-O 15. Be3 e5 16. dxe5 Bxe5 17. Bd4 Bxd4+ 18. Qxd4 Qb6 19. Qxb6 axb6 {½-½ (30) Castagna,R-Beni,A Bad Pyrmont 1963}) 13. Re1 {[%emt 0:00:36]} O-O {[%emt 0:00:30]} 14. Qb3 {[%emt 0:00:35]} Qd7 {[%emt 0:00:30]} 15. Bf4 {[%emt 0:00:39]} Rac8 {[%emt 0:00:30]} 16. Bf3 {[%emt 0:00:43]} Be6 {[%emt 0:00:30]} 17. Qa3 {[%emt 0:00:36]} a6 {[%emt 0:00:30]} 18. Qc5 {[%emt 0:00:40]} Rfe8 {[%emt 0:00:30]} 19. a4 {[%emt 0:00:36]} Bd5 {[%emt 0:00:30]} 20. Be4 {[%emt 0:00:37]} Bf8 {[%emt 0:00:30][%cal Oe7e5] [#] Threatens to win with ...e5!} 21. Qb6 {[%emt 0:00:37]} e6 {[%emt 0:00:30]} 22. a5 {[%emt 0:00:36]} Be7 {[%emt 0:00:30]} 23. h4 {[%emt 0:00:36]} Kg7 {[%emt 0:00:30]} 24. Rad1 {[%emt 0:00:41]} h6 $1 {[%emt 0:00:30][%cal Bh7h6,Bh6g5][%mdl 32]} 25. b3 {[%emt 0:09:43]} (25. Bd2 $15) 25... g5 $17 {[%emt 0:00:59]} 26. hxg5 {[%emt 0:00:32]} (26. Bc1 $17) 26... hxg5 $19 {[%emt 0:00:09]} 27. Bc1 {[%emt 0:00:09]} f5 $2 {[%emt 0:06:47]} (27... Rh8 $19 {[%cal Oe6e5] And now ...e5! would win.} 28. f3 Rh3) 28. Bg2 $17 {[%emt 0:02:02]} Bxg2 {[%emt 0:01:31]} 29. Kxg2 {[%emt 0:00:41]} Qd5+ {[%emt 0:00:30]} ({Better is} 29... Kg6 $17) 30. f3 $11 {[%emt 0:00:47]} g4 {[%emt 0:00:30]} 31. Rd3 {[%emt 0:00:41]} gxf3+ {[%emt 0:00:30]} 32. Rxf3 {[%emt 0:00:43]} Qd7 {[%emt 0:00:30]} 33. Bf4 {[%emt 0:00:43]} Bf6 {[%emt 0:00:30]} 34. Be5 {[%emt 0:00:26][%cal Og3g4]} Rh8 {[%emt 0:00:18]} 35. Qc5 $36 {[%emt 0:00:30][%cal Og3g4][%mdl 2048] aiming for g4! White is more active.} Qd5 $2 {[%emt 0:00:30][%mdl 8192] [#]} (35... Kf7 $14) 36. Qe7+ $1 {[%emt 0:00:16] White mates.} Kg8 {[%emt 0:00:21]} 37. Qxf6 {[%emt 0:00:22][%csl Ge5][%cal Rf6g7]} Rh7 {[%emt 0:00:55]} 38. Qg6+ {[%emt 0:00:17] What a bad dream for Black.  Weighted Error Value: White=0.21 (precise) /Black=0.40} 1-0

[Event "Croatian 1A League 2022"]
[Site "Porec"]
[Date "2022.09.24"]
[Round "1.19"]
[White "Kadric, Denis"]
[Black "Fedorchuk, Sergey A."]
[Result "0-1"]
[ECO "B82"]
[WhiteElo "2561"]
[BlackElo "2617"]
[Annotator "TA"]
[PlyCount "72"]
[EventDate "2022.09.24"]
[EventType "team-tourn"]
[EventCountry "CRO"]
[SourceTitle "playchess.com"]
[Source "ChessBase"]
[SourceQuality "1"]
[TimeControl "40/5400+30:1800+30"]

{[%evp 23,72,0,0,0,10,0,16,0,5,-11,-6,-5,-8,-6,-6,-11,0,0,0,-3,0,-80,-106,-67,-64,-91,-102,-93,-105,-163,-169,-281,-314,-220,-38,-120,-120,-106,-108,-111,196,210,195,0,0,0,0,-477,-413,-1906,-1825]} 1. e4 {[%emt 0:01:00]} c5 {[%emt 0:01:00]} 2. Nc3 {[%emt 0:00:00]} e6 {[%emt 0:00:30]} 3. Nge2 {[%emt 0:00:00]} a6 {[%emt 0:44:30]} 4. d4 {[%emt 0:48:30]} cxd4 {[%emt 0:00:30]} 5. Nxd4 {[%emt 0:01:30]} Nc6 {[%emt 0:00:30]} 6. Be3 {[%emt 0:00:30]} Nf6 {[%emt 0:00:30]} 7. Bd3 {[%emt 0:00:30]} Qc7 {[%emt 0:00:30]} 8. Nb3 {[%emt 0:00:30]} b5 {[%emt 0:00:30]} 9. f4 {[%emt 0:00:30]} d6 {[%emt 0:00:30]} 10. O-O {[%emt 0:00:30]} Be7 {[%emt 0:00:30]} 11. Qf3 {[%emt 0:01:30]} Bb7 {[%emt 0:00:30]} 12. Qh3 {[%emt 0:00:30]} h5 {[%emt 0:00:30]} 13. Kh1 {[%emt 0:00:30] B82: Sicilian Scheveningen: 6 f4.} Rc8 $5 {[%emt 0:00:30][%mdl 4] Leaves trodden paths.} 14. Rae1 {[%emt 0:00:30]} Nb4 {[%emt 0:00:30] [#]} 15. Bf2 $146 {[%emt 0:00:30] The position is equal.} ({Predecessor:} 15. a3 Nxd3 16. cxd3 Ng4 17. Nd4 Nxe3 18. Rxe3 Qb6 19. Nde2 Kd8 20. Rg3 Bf6 21. d4 Bxd4 {½-½ (33) Andriasian,Z (2602)-Kryvoruchko,Y (2691) Gjakova 2016}) 15... Qd7 {[%emt 0:00:30]} (15... h4 $5) 16. Nd4 {[%emt 0:01:30]} Nxd3 {[%emt 0:00:30]} 17. cxd3 {[%emt 0:00:30]} b4 {[%emt 0:00:30]} 18. Nd1 {[%emt 0:00:30]} g6 {[%emt 0:00:30][%cal Bg7g6,Bg6f5][%mdl 32]} 19. Nf3 {[%emt 0:01:30] Prevents e5.} Qb5 {[%emt 0:19:30]} 20. Nd4 {[%emt 0:06:30]} Qd7 {[%emt 0:00:30]} 21. Nf3 {[%emt 0:00:30] Prevents e5.} Qb5 {[%emt 0:00:30]} 22. f5 {[%emt 0:05:30]} (22. Nd4 $11 Qa5 23. Ne3) 22... gxf5 $17 {[%emt 0:01:30]} ({Resist} 22... Qxd3 23. fxe6 O-O 24. Bh4 $14) 23. Nd4 {[%emt 0:00:30][%csl LRb5,LRf5]} Qd7 {[%emt 0:00:30][%cal Rf5e4]} 24. Bh4 {[%emt 0:00:30]} Rg8 $1 {[%emt 0:00:30]} 25. Ne3 {[%emt 0:06:30][%cal Re4f5]} Ng4 $1 {[%emt 0:09:50]} 26. Nexf5 {[%emt 0:19:42]} exf5 $19 {[%emt 0:01:21]} 27. Nxf5 {[%emt 0:00:02] [#]} (27. Bxe7 $142 Qxe7 28. Nxf5) 27... Bxh4 $1 {[%emt 0:10:57]} 28. Qxh4 {[%emt 0:00:01]} Qe6 $2 {[%emt 0:01:46]} ({Black should play} 28... Rc2 $19 {Threatens to win with ...Qd8.} 29. Qxh5 Nf6) 29. h3 {[%emt 0:01:23]} (29. Qxh5 $15 Kd8 30. Qh7 (30. Nd4 $2 Qe5 $19)) 29... Ne5 $17 {[%emt 0:00:46][%cal Bg4e5,Be5d3,Bd3c1][%mdl 32]} 30. d4 {[%emt 0:00:49]} Nd3 {[%emt 0:01:53]} 31. Re2 {[%emt 0:00:56] And now Rd2 would win.} Rc1 $2 {[%emt 0:02:02][%mdl 8192]} (31... Kd7 $17 {and life is bright. ...Rc1 is the strong threat.} 32. d5 Qe5 33. Qxh5 Rgf8) 32. Rxc1 $18 {[%emt 0:00:59]} Nxc1 {[%emt 0:00:02] [#]} 33. Rc2 {[%emt 0:00:53]} (33. d5 $1 $18 {[%cal Rd5e6]} Qe5 34. Rc2) 33... Kd7 $11 {[%emt 0:00:31]} 34. d5 $1 {[%emt 0:00:54]} Bxd5 {[%emt 0:00:33]} 35. Qf2 $2 {[%emt 0:00:44][%mdl 8192]} (35. exd5 $11 {and White has nothing to worry.} Qxf5 36. Qc4) 35... Qxe4 $19 {[%emt 0:00:38]} 36. Qb6 {[%emt 0:00:34]} (36. Qa7+ $142 Bb7 37. Qb6 Qe1+ 38. Kh2 Rxg2+ 39. Rxg2 Qe5+ 40. Ng3 Bxg2 41. Kxg2 Qxb2+ 42. Kg1 Nxa2 43. Qb7+ Ke6 44. Qc8+ Kd5 45. Qa8+ Kc4 46. Qxa6+ Kb3 47. Qxd6 Qb1+ 48. Kg2) 36... Qxf5 {[%emt 0:00:38] Weighted Error Value: White=0.73/Black=0.27 (precise)} 0-1